Cogmind - Beta 11 X6 @@@ ROGUE MODE // 2021.08.08 @ 18:42:49 Player: Plexion Result: Destroyed by D-53 Grenadier with Mini Grenade Launcher Performance ------------- Evolutions (0) 0 Regions Visited (2) 400 Robots Destroyed (19) 95 Value Destroyed (354) 354 Prototype IDs (1) 20 Alien Tech Used (0) 0 Bonus (0) 0 TOTAL SCORE: 869 Bonus ------- None Cogmind --------- Core Integrity 0/250 Matter 260/300 Energy 94/100 System Corruption 0% Temperature Hot (214) Movement Core (50) Location -10/Mines Parts ------- > --- POWER (1) -------- (None) > --- PROPULSION (2) --- (None) > --- UTILITY (2) ------ (None) > --- WEAPON (2) ------- (None) > --- INVENTORY (5) ---- Improved Ion Engine Light Armor Plating Small Laser Advanced Beam Cannon Heavy Battle Rifle Peak State ------------ > --- POWER ------------ Improved Ion Engine > --- PROPULSION ------- Light Treads Light Treads > --- UTILITY ---------- Large Storage Unit Light Armor Plating > --- WEAPON ----------- Small Laser Advanced Beam Cannon > --- INVENTORY -------- Improved Ion Engine Light Treads Light Armor Plating Light Armor Plating Light Armor Plating Light Armor Plating Light Armor Plating EM Pulse Gun Assault Rifle Assault Rifle [Rating: 11] Favorites ----------- Power Improved Ion Engine Engine Improved Ion Engine Propulsion Light Treads Treads Light Treads Utility Large Storage Unit Storage Large Storage Unit Protection Light Armor Plating Weapon Small Laser Energy Gun Small Laser Energy Cannon Advanced Beam Cannon Ballistic Gun Assault Rifle Build | -11 -10 -10 ------- Run | Scr Mat Min Slots Evolved . | . . . Power . | . . . Propulsion . | . . . Utility . | . . . Weapon . | . . . Parts Attached 17 | 6 6 5 Power 3 | 1 2 . Engine 3 | 1 2 . Core . | . . . Reactor . | . . . Propulsion 4 | 2 . 2 Treads 4 | 2 . 2 Leg . | . . . Wheel . | . . . Hover . | . . . Flight . | . . . Utility 4 | 1 2 1 Device . | . . . Storage 2 | 1 1 . Processor . | . . . Hackware . | . . . Protection 2 | . 1 1 Artifact . | . . . Weapon 6 | 2 2 2 Energy Gun 3 | 1 1 1 Energy Cannon 1 | . 1 . Ballistic Gun 2 | 1 . 1 Ballistic Cannon . | . . . Launcher . | . . . Special Weapon . | . . . Impact Weapon . | . . . Slashing Weapon . | . . . Piercing Weapon . | . . . Special Melee Weapon . | . . . Unidentified Prototypes 1 | . 1 . Parts Lost 9 | . 1 8 Power 2 | . 1 1 Propulsion 4 | . . 4 Utility 1 | . . 1 Weapon 2 | . . 2 Highest Loss Streak 5 | . 1 5 Average Slot Usage (%) 89 | . 86 96 Engine 14 | . 14 14 Treads 27 | . 28 26 Storage 14 | . 14 14 Protection 4 | . 1 12 Energy Gun 14 | . 14 14 Energy Cannon 4 | . 5 . Ballistic Gun 9 | . 8 13 Naked Turns 1 | . . 1 Heaviest Build 35 | 11 35 33 Greatest Support 40 | 40 40 40 Greatest Overweight (x) . | . . . Average Overweight (x) . | . . . Largest Inventory Capacity 15 | 8 15 15 Average Capacity 14 | 7 14 14 Most Carried 12 | 2 11 12 Average Carried 5 | 1 4 10 Final Capacity 15 | 8 15 5 Final Carried 11 | 2 11 5 Class Distribution -------------------- 100% | Mutant Dominant Class ---------------- Mutant | -10/Materials Mutant | -10/Mines Resources | -11 -10 -10 ----------- Run | Scr Mat Min Matter Collected 498 | 260 144 94 Remotely . | . . . Salvage Created 740 | . 524 216 Parts 42 | . 36 6 Haulers Intercepted 2 | . 2 . Recyclers Shooed . | . . . Parts Field Recycled . | . . . Retrieved Matter . | . . . Parts Self-Destructed . | . . . Prevented . | . . . Kills | -11 -10 -10 ------- Run | Scr Mat Min Combat Hostiles Destroyed 26 | . 12 14 Guns 25 | . 12 13 Cannons 1 | . . 1 Classes Destroyed 5 | . 4 1 Hauler 2 | . 2 . Watcher 2 | . 2 . Swarmer 8 | . 5 3 Grunt 7 | . 7 . Assembled 11 | . . 11 Best Kill Streak 11 | . 3 11 Combat Bots Only 11 | . 3 11 Max Kills in Single Turn 2 | . 1 2 Gunslinging 1 | . . 1 Exploded . | . . . Melee . | . . . Uniques/NPCs Destroyed . | . . . Combat | -11 -10 -10 -------- Run | Scr Mat Min Damage Taken 1591 | . 514 1077 Core 261 | . 47 214 Absorbed by Shields . | . . . Core Remaining (%) 100 | 100 . . Volleys Fired 79 | . 38 41 Largest 2 | . 2 2 Hottest 108 | . 108 108 Shots Fired 155 | . 75 80 Gun 147 | . 71 76 Cannon 8 | . 4 4 Launcher . | . . . Special . | . . . Kinetic 71 | . 34 37 Thermal 78 | . 41 37 Explosive . | . . . Electromagnetic 6 | . . 6 Robot Hit Streak 13 | . 13 10 Robot Miss Streak 4 | . 3 4 Penetration Max . | . . . Secondary Targets 6 | . 1 5 Max Gunslinging Chain 1 | . 1 1 Shots Hit Robots 102 | . 56 46 Core Hits 52 | . 25 27 Critical Kills . | . . . Critical Parts Destroyed . | . . . Critical Strikes . | . . . Melee Attacks . | . . . Impact . | . . . Slashing . | . . . Piercing . | . . . Sneak Attacks . | . . . Combat Hostiles . | . . . Follow-up Attacks . | . . . Damage Inflicted 1269 | . 675 594 Guns 1139 | . 613 526 Cannons 130 | . 62 68 Explosions . | . . . Melee . | . . . Ramming . | . . . Kinetic 535 | . 298 237 Thermal 675 | . 377 298 Explosive . | . . . Electromagnetic 59 | . . 59 Impact . | . . . Slashing . | . . . Piercing . | . . . Highest Corruption . | . . . Average Corruption . | . . . Corruption Purged . | . . . Overload Shots . | . . . Overflow Damage 2 | . . 2 Projectiles 2 | . . 2 Explosions . | . . . Melee . | . . . Knockbacks . | . . . Impact . | . . . Kinetic . | . . . Secondary . | . . . Self-Inflicted Damage . | . . . Shots . | . . . Rammed . | . . . Targets Rammed . | . . . Kicked . | . . . Crushed . | . . . Highest Temperature 345 | . 102 345 Average Temperature 115 | . 43 167 Received Heat Transfer 363 | . 243 120 Effects 2 | . . 2 Shutdowns 1 | . . 1 Energy Bleed 1 | . . 1 Siege Activations . | . . . Robots Corrupted . | . . . Combat Hostiles . | . . . Parts Fried . | . . . Impact Corruptions . | . . . Robots Melted . | . . . Combat Hostiles . | . . . Parts Melted . | . . . Heat Transferred 1472 | . 836 636 Parts Sabotaged . | . . . Parts Stolen . | . . . Parts Stripped . | . . . Power Chain Reactions . | . . . Missiles Intercepted . | . . . Alert | -11 -10 -10 ------- Run | Scr Mat Min Peak Influence 249 | . 249 79 Initial 9 | . . 9 Average 105 | . 128 69 Maximum Alert Level 1 | . 1 . Low Security (%) 87 | 100 81 100 Level 1 12 | . 18 . Level 2 . | . . . Level 3 . | . . . Level 4 . | . . . Level 5 . | . . . High Security . | . . . Max Security . | . . . Squads Dispatched 4 | . 4 . Investigation 1 | . 1 . Extermination . | . . . Reinforcement 3 | . 3 . Assault . | . . . Garrison . | . . . Intercept . | . . . Construction Impeded . | . . . Haulers Reinforced . | . . . Active Scanning Responses . | . . . Cargo Convoy Interrupts . | . . . Stealth | -11 -10 -10 --------- Run | Scr Mat Min Distress Signals 2 | . 2 . Communications Jammed . | . . . Distress Signals . | . . . Times Spotted 47 | . 21 26 Peak Tracking Total 9 | . 3 9 Tactical Retreats 1 | . . 1 Traps | -11 -10 -10 ------- Run | Scr Mat Min Traps Triggered 1 | . 1 . Indirectly . | . . . Trap Hack Attempts . | . . . Triggered . | . . . Disarmed . | . . . Reprogrammed . | . . . Reused . | . . . Traps Extracted . | . . . Installed . | . . . Triggered . | . . . Machines | -11 -10 -10 ---------- Run | Scr Mat Min Machines Disabled . | . . . Max in Single Turn . | . . . Machines Sabotaged . | . . . Garrisons Compromised . | . . . Overloaded Fab Kills . | . . . Fab Network Shutdowns . | . . . Hacking | -11 -10 -10 --------- Run | Scr Mat Min Machines Accessed 6 | . 6 . Terminals 5 | . 5 . Fabricators . | . . . Repair Stations . | . . . Recycling Units 1 | . 1 . Scanalyzers . | . . . Garrison Access . | . . . Total Hacks 15 | . 15 . Successful 2 | . 2 . Failed 13 | . 13 . Catastrophic 2 | . 2 . Database Lockouts . | . . . Manual 12 | . 12 . Terminals 12 | . 12 . Fabricators . | . . . Repair Stations . | . . . Recycling Units 3 | . 3 . Scanalyzers . | . . . Garrison Access . | . . . Terminal Hacks 1 | . 1 . Robot Analysis 1 | . 1 . Fabricator Hacks . | . . . Repair Station Hacks . | . . . Recycling Unit Hacks . | . . . Scanalyzer . | . . . Garrison Access Hacks . | . . . Unauthorized Hacks 1 | . 1 . Terminals . | . . . Fabricators . | . . . Repair Stations . | . . . Recycling Units 1 | . 1 . Mask 1 | . 1 . Scanalyzers . | . . . Garrison Access . | . . . Data Cores Recovered . | . . . Used . | . . . Hacking Detections 6 | . 6 . Full Trace Events . | . . . Feedback Events . | . . . Feedback Blocked . | . . . Robot Schematics Acquired . | . . . Robots Built . | . . . Matter . | . . . Time . | . . . Total Robot Build Rating . | . . . Part Schematics Acquired . | . . . Parts Built . | . . . Matter . | . . . Time . | . . . Total Part Build Rating . | . . . Parts Repaired . | . . . Time . | . . . Parts Recycled . | . . . Recycled Matter . | . . . Retrieved Matter . | . . . Retrieved Components . | . . . Parts Scanalyzed . | . . . Part Schematics Acquired . | . . . Parts Damaged . | . . . Bothacking | -11 -10 -10 ------------ Run | Scr Mat Min Used RIF Installer . | . . . Robots Hacked . | . . . Non-combat . | . . . Combat . | . . . Robot Hacks Applied . | . . . Relay Couplers Released . | . . . Robots Rewired . | . . . Allies Hacked . | . . . Hacks Repelled . | . . . Allies | -11 -10 -10 -------- Run | Scr Mat Min Total Allies . | . . . Largest Group . | . . . Highest-Rated Group . | . . . Highest-Rated Ally . | . . . Total Orders . | . . . Ally Attacks . | . . . Total Damage . | . . . Kills . | . . . Allies Corrupted . | . . . Allies Melted . | . . . Intel | -11 -10 -10 ------- Run | Scr Mat Min Robot Analysis Total 1 | . 1 . Derelict Logs Recovered . | . . . Drone Launches . | . . . Drone Recoveries . | . . . Exploration | -11 -10 -10 ------------- Run | Scr Mat Min Turns Passed 1248 | 85 850 313 Spaces Moved 595 | 49 430 116 Core 4 | 3 . 1 Treads 591 | 46 430 115 Legs . | . . . Wheels . | . . . Hover . | . . . Flight . | . . . Fastest Speed 50 | 50 160 50 Average Speed 159 | 153 160 159 Slowest Speed 160 | 160 160 160 Overloaded Moves . | . . . Propulsion Burnouts . | . . . Robots Hopped . | . . . Cave-ins Triggered . | . . . Exploration Rate (%) 39 | 4 83 30 Regions Visited 2 Branch Regions 1 Pre-discovered Areas . | . . . Known Exits Taken . | . . . Unknown Exits Taken 2 | 1 1 . Scrap Searched 1 | . . 1 Spaces Dug . | . . . Terrain Destroyed . | . . . Melee . | . . . Projectile . | . . . AOE . | . . . Terrain Rammed . | . . . Walls Destroyed . | . . . Machines Disabled . | . . . Actions | -11 -10 -10 --------- Run | Scr Mat Min Total 739 | 56 519 164 Wait 27 | . 27 . Move 593 | 48 429 116 Hop . | . . . Pick Up 15 | 2 12 1 Fast Attach 8 | 6 2 . Attach 5 | . 2 3 Detach 2 | . 2 . Swap 4 | . 2 2 Drop 6 | . 5 1 Fire 79 | . 38 41 Melee . | . . . Ram . | . . . Kick . | . . . Crush . | . . . Escape Stasis . | . . . Rewire . | . . . Trap . | . . . Miscellaneous . | . . . Route ------- -11/Scrapyard -10/Materials (discovered 4 exits: [*Mat x2] / [*Min x2]) -10/Mines History --------- Turn | Location | Event 2 | -11/Scrapyard | Discovered new exit (range 16) 86 | -11/Scrapyard | Entered Materials 115 | -10/Materials | Discovered new exit (range 16) 225 | -10/Materials | Discovered new exit (range 14) 314 | -10/Materials | Build established: Mutant 416 | -10/Materials | Discovered new exit (range 16) 675 | -10/Materials | Discovered new exit (range 12) 936 | -10/Materials | Entered Mines 1098 | -10/Mines | A weapon hastily lodged in a ceiling crevice suddenly fell to the ground 1131 | -10/Mines | Assembled infested the area 1214 | -10/Mines | Core integrity fell below 50% 1246 | -10/Mines | Core integrity fell below 20% 1249 | -10/Mines | Destroyed by D-53 Grenadier with Mini Grenade Launcher Last Messages --------------- 01221_ as-84645 destroyed. 01226_ Overheating: Energy bleed (-36). 01231_ as-82984 destroyed. 01231_ Switching to secondary target: as-35548. 01239_ C-30 ARC bursts open, deploying its payload. 01239_ D-53 Grenadier unfolds itself. 01242_ as-22623 destroyed. 01242_ EM Pulse Gun destroyed. 01242_ as-96103 destroyed. 01242_ as-35548 destroyed. 01244_ Lgt. Treads destroyed. 01245_ as-61190 destroyed. 01245_ as-88683 destroyed. 01245_ as-93107 destroyed. 01246_ The unstable cave ceiling collapses. 01247_ Imp. Ion Engine destroyed. 01247_ Assault Rifle destroyed. 01247_ as-86076 destroyed. 01248_ Lgt. Treads destroyed. 01248_ Dropped Lrg. Storage Unit. Map ----- +----------------------------------------------------+ | ### ## ## ####????????????????????? | | ####?# ## ###### ##### #???????????????????????? | | ?????# #????# ##???# #???????????????????????? | | ?????# ####????# ##????# #???????????????????????? | | ###### #???????# #?????# #???????????????????????? | | ###?????# #????## #???????????????????????? | | ##????# #???## ##?????## ##????????????? | | #### #????# #???# #### ##???????????? | | ??# #????# #??## % #???????????? | | ?## ##???# #?## ! #???????????? | | ## #???# #?# ##### #??????????? | | # #???# ### #????? #?????????? | | """ ##???# ##?????? ????????? | | """ ##????####### #?????????## ?????????? | | """ #???????????# #????????????? ?????????? | | ## #??????????# #??????????????? ?????????? | | #?# #??????????# ###???????????????????????? | | ??# ##??????????# #???????????????????????? | | ??## ####???????????###%#???????????????????????? | | ???####???????????????## ###?????????????????????? | | ????????????????????### ##????????????????????? | | ???????????????????## ##???????????????????? | | ???????????????????# #???????????????????? | | ???????????????????# dd #???????????????????? | | ???????????????????# [!! #???????????????????? | | ???????????????????# a@ ##???????????????????? | | ???????????????????# #???????????????????? | | ???????????????????## ##???????????????????? | | ????????????????????## %a ???????????????????? | | ?????????????????????### ######??????????????????? | | ???????????????????????# #???????????????????????? | | ???????????????????????# #???????????????????????? | | ???????????????????????# #???????????????????????? | | ???????????????????????# ????????????????????????? | | ???????????????????????# ????????????????????????? | | ???????????????????????# ????????????????????????? | | ???????????????????????##????????????????????????? | | ?????????????????????????????????????????????????? | | ?????????????????????????????????????????????????? | | ?????????????????????????????????????????????????? | | ?????????????????????????????????????????????????? | | ?????????????????????????????????????????????????? | | | | | | | | | | | | | | | | | +----------------------------------------------------+ Best States ------------- Heat Dissipation 25 Energy Generation 12 Energy Capacity 265 Matter Stores 300 Matter Capacity 300 Sight Range 16 Terrain Scan Density 10 Armor Coverage 150 Evasion (%) 40 Recoil Reduction 2 Item Schematics ----------------- None Robot Schematics ------------------ None Fabricated ------------ Nothing Alien Tech Used ----------------- None Achievements -------------- None Challenges ------------ None Game ------ Seed GrenadeMyomerNukerbomber Manual? 0 Play Time 00:08:45 Cumulative 214.8 hours Start 2021.08.08 @ 18:36:01 End 2021.08.08 @ 18:42:49 Sessions 1 Manual Loads 0 Difficulty Rogue Special Mode None Game No. 282 Rogue 195 Adventurer 87 Explorer 0 Win Type - Total 4 Types 3/0/0/1/0/0/0/0/0 Lore% 68 Gallery% 76 Achievement% 62 Wizard Run 0 Options --------- ASCII 0 Keyboard 1 Movement Numpad Keybinds 0 Fullscreen 1 Font 18/Smallcaps Map View 76x50 Tactical HUD 1 Map Filters NONE Filters NONE Steam 1 RUN: c545fa1d-37c5-42bf-b48c-533597741d2e